bitfinex/quotes_ETHUSD_20250602
["timestamp","ask_amount","ask_price","bid_price","bid_amount"]
[1748830762015,0.55,2516.6,2516.5,3.97377309]
[1748830762320,0.55,2516.6,2516.4,3.97385057]
[1748830762879,0.55,2516.6,2516.5,3.97377309]
[1748830763113,0.55,2516.6,2516.4,3.97385561]
[1748830763501,0.55,2516.6,2516.5,3.97377309]
[1748830767319,4.649,2516.6,2516.5,3.97377309]
[1748830768116,4.649,2516.6,2516.4,3.97385129]
[1748830769424,4.649,2516.6,2516.5,3.97377309]
[1748830770629,4.648,2516.6,2516.5,4.79967309]
[1748830770829,4.648,2516.6,2516.5,3.97377309]
[1748830771120,4.648,2516.6,2516.4,3.97386399]
[1748830771723,4.648,2516.6,2516.5,3.97377309]
[1748830772622,4.648,2516.6,2516.4,3.97390717]
[1748830772922,4.648,2516.6,2516.3,4.79987395]
[1748830772923,8.0,2516.5,2516.1,5.89737034]
[1748830773119,8.0,2516.5,2516.3,3.97407977]
[1748830773543,8.0,2516.5,2516.1,3.99432483]
[1748830773701,8.0,2516.5,2516.2,3.97424587]
[1748830774231,8.0,2516.5,2516.1,3.99436647]
[1748830774811,8.0,2516.5,2516.2,3.97414353]
[1748830776237,0.55,2516.4,2516.1,3.9943804]
[1748830776401,0.55,2516.2,2516.1,0.02]
[1748830776606,1.305,2516.2,2516.1,0.02]
[1748830778125,4.4427516,2516.7,2516.1,0.02]
[1748830778126,0.55,2516.6,2516.1,0.02]
[1748830778325,4.098,2516.5,2516.2,3.97416035]
[1748830778512,0.55,2516.3,2516.1,0.02]
[1748830778714,4.098,2516.2,2516.1,3.99435619]
[1748830779344,4.098,2516.2,2516.1,0.02]
[1748830779595,13.56460012,2516.2,2516.1,0.02]
[1748830779703,12.648,2516.2,2516.1,0.02]
[1748830779906,13.02426158,2516.2,2516.1,0.02]
[1748830780351,13.02426045,2516.2,2516.1,0.02]
[1748830780522,12.648,2516.2,2516.1,0.02]
[1748830780723,13.02419293,2516.2,2516.1,0.02]
[1748830780928,17.85610531,2516.2,2516.1,0.02]
[1748830781440,21.83035219,2516.2,2516.1,0.02]
[1748830782236,17.85610531,2516.2,2516.1,0.02]
[1748830782436,22.60405219,2516.2,2516.1,0.02]
[1748830782745,14.75453752,2515.2,2515.1,0.02]
[1748830782948,20.17623752,2515.2,2515.1,0.02]
[1748830783256,20.55210223,2515.2,2515.1,0.02]
[1748830783460,13.4217,2515.2,2515.1,0.02]
[1748830783620,12.098,2515.2,2515.1,0.02]
[1748830783822,12.098,2515.2,2515.1,3.99598505]
[1748830784055,12.098,2515.2,2515.1,0.02]
[1748830784363,13.58567106,2515.2,2515.1,0.02]
[1748830784558,12.098,2515.2,2515.1,3.99598505]
[1748830784750,12.099,2515.2,2515.1,3.99598505]
[1748830785346,12.099,2515.2,2515.1,0.02]
[1748830788441,12.649,2515.2,2515.1,0.02]
[1748830788768,14.58932375,2515.2,2515.1,0.02]
[1748830788946,12.099,2515.2,2515.1,0.02]
[1748830791065,12.1,2515.2,2515.1,3.99598505]
[1748830791266,12.1,2515.2,2515.1,0.02]
[1748830791867,15.42871055,2515.2,2515.1,0.02]
[1748830792373,19.40453752,2515.2,2515.1,0.02]
[1748830793045,20.15913752,2515.2,2515.1,0.02]
[1748830799492,16.05913752,2515.2,2515.1,0.02]
[1748830799777,12.1,2515.2,2515.1,0.02]
[1748830800345,8.0,2515.2,2515.1,0.02]
[1748830800540,12.1,2515.2,2515.1,0.02]
[1748830801345,13.7075635,2515.2,2515.1,0.02]
[1748830801669,18.23339047,2515.2,2515.1,0.02]
[1748830802972,14.2575635,2515.2,2515.1,0.02]
[1748830803176,19.01019047,2515.2,2515.1,0.02]
[1748830803846,15.0343635,2515.2,2515.1,0.02]
[1748830804043,21.78890102,2515.2,2515.1,0.02]
[1748830804784,22.16287108,2515.2,2515.1,0.02]
[1748830806192,15.28416053,2515.2,2515.1,0.02]
[1748830806393,28.40358163,2515.2,2515.1,0.02]
[1748830806687,18.06287108,2515.2,2515.1,0.02]
[1748830806905,14.08704411,2515.2,2515.1,0.02]
[1748830807054,17.81307405,2515.2,2515.1,0.02]
[1748830807257,15.42871055,2515.2,2515.1,0.02]
[1748830809481,14.87871055,2515.2,2515.1,0.02]
[1748830810667,19.40453752,2515.2,2515.1,0.02]
[1748830811071,20.18933752,2515.2,2515.1,0.02]
[1748830811267,20.56438043,2515.2,2515.1,0.02]
[1748830814209,22.94938043,2515.2,2515.1,0.02]
[1748830814419,22.57433752,2515.2,2515.1,0.02]
[1748830814596,22.94940719,2515.2,2515.1,0.02]
[1748830814784,16.46440719,2515.2,2515.1,0.02]
[1748830814973,8.37506967,2515.2,2515.1,0.02]
[1748830815173,12.47506967,2515.2,2515.1,0.02]
[1748830815776,19.19369345,2515.2,2515.1,0.02]
[1748830815976,15.21786648,2515.2,2515.1,0.02]
[1748830816395,19.19369345,2515.2,2515.1,0.02]
[1748830817010,15.21786648,2515.2,2515.1,0.02]
[1748830817219,19.19369345,2515.2,2515.1,0.02]
[1748830817988,15.21786648,2515.2,2515.1,0.02]
[1748830818599,19.19369345,2515.2,2515.1,0.02]
[1748830818917,15.21812893,2515.2,2515.1,0.02]
[1748830819476,19.1939559,2515.2,2515.1,0.02]
[1748830820725,19.9609559,2515.2,2515.1,0.02]
[1748830822223,19.58562378,2515.2,2515.1,0.02]
[1748830822533,19.96110699,2515.2,2515.1,0.02]
[1748830823017,22.36433433,2515.2,2515.1,0.02]
[1748830823594,23.20932181,2515.2,2515.1,0.02]
[1748830824006,22.73988432,2515.2,2515.1,0.02]
[1748830824208,22.73988205,2515.2,2515.1,0.02]
[1748830824830,22.36433433,2515.2,2515.1,0.02]
[1748830825123,22.73990536,2515.2,2515.1,0.02]
[1748830825478,23.20936915,2515.2,2515.1,0.02]
[1748830826021,0.55,2514.5,2514.1,0.7724]
[1748830826177,6.87871055,2514.4,2514.1,0.7724]
[1748830826378,6.87871055,2514.4,2514.1,4.74990162]
[1748830826609,4.1,2514.4,2514.2,3.97738443]
[1748830826818,4.1,2514.4,2514.1,4.74995221]
[1748830827022,6.87871055,2514.4,2514.1,0.7724]
[1748830827192,6.87871055,2514.4,2514.2,3.97733581]
[1748830827402,12.1,2514.4,2514.3,3.97725012]
[1748830827986,8.0,2514.4,2514.3,4.77635012]
[1748830830591,0.55,2515.0,2514.4,0.7803]
[1748830830822,7.36997171,2515.2,2514.7,3.97649779]
[1748830831004,4.47558411,2515.1,2514.9,0.78]
[1748830831325,8.0,2515.0,2514.9,0.78]
[1748830831890,8.0,2515.0,2514.7,4.75655979]
[1748830832219,4.1,2514.9,2514.7,4.75656114]
[1748830832416,12.1,2514.9,2514.8,3.97638939]
[1748830832841,12.1,2514.9,2514.7,4.75653095]
[1748830833137,12.1,2514.9,2514.8,3.97645936]
[1748830833456,3.39414223,2515.2,2514.9,3.97617968]
[1748830833594,12.1,2515.1,2514.9,3.97617968]
[1748830833938,12.1,2515.1,2514.7,0.78]
[1748830834092,8.0,2515.3,2515.0,3.97614314]
[1748830834291,8.0,2515.1,2514.9,3.97624523]
[1748830834908,8.0,2515.1,2514.8,3.97641751]
[1748830835309,8.0,2515.1,2514.7,0.78]
[1748830835512,8.0,2515.1,2514.9,3.97622553]
[1748830837010,8.0,2515.1,2514.9,3.97623332]
[1748830838227,8.0,2515.1,2515.0,3.97614314]
[1748830838427,8.0,2515.1,2514.9,3.97622778]
[1748830839134,8.0,2515.1,2515.0,3.97614314]
[1748830839438,5.30825766,2515.5,2514.7,0.78]
[1748830839439,1.3329,2515.5,2514.7,0.78]
[1748830839623,0.37598772,2515.6,2515.1,0.8194]
[1748830839936,4.1,2515.5,2515.3,3.9755364]
[1748830840118,12.1,2515.5,2515.4,3.97551085]
[1748830840536,12.1,2515.5,2515.3,3.97560771]
[1748830840701,4.1,2515.4,2515.3,3.97560771]
[1748830841227,4.1,2515.4,2515.2,3.97576246]
[1748830843560,4.1,2515.4,2515.1,4.79530203]
[1748830843709,4.1,2515.4,2515.1,0.8194]
[1748830844017,4.1,2515.4,2515.1,4.79532289]
[1748830844202,0.50710102,2515.7,2515.5,3.97535129]
[1748830844203,2.77871055,2515.7,2515.5,3.97535129]
[1748830844400,4.099,2515.6,2515.1,1.29893229]
[1748830844599,4.099,2515.6,2515.1,4.7953752]
[1748830844805,12.099,2515.6,2515.5,3.97535281]
[1748830845232,8.0,2515.6,2515.5,3.97535281]
[1748830845435,12.099,2515.6,2515.5,4.78765281]
[1748830847625,12.03578786,2515.6,2515.5,4.78765281]
[1748830847824,7.93678786,2515.6,2515.5,4.78765281]
[1748830848110,12.03578786,2515.6,2515.5,4.78765281]
[1748830849466,7.93678786,2515.6,2515.5,4.78765281]
[1748830849626,12.03578786,2515.6,2515.5,4.78765281]
[1748830849823,7.93678786,2515.6,2515.5,4.78765281]
[1748830850140,12.03578786,2515.6,2515.5,4.78765281]
[1748830850619,4.09581055,2516.1,2515.7,3.97491753]
[1748830850822,8.0,2515.9,2515.7,3.97493642]
[1748830851063,8.0,2516.0,2515.8,3.97476385]
[1748830851267,2.77871055,2516.1,2515.7,3.9749252]
[1748830851468,8.0,2515.9,2515.8,3.97487876]
[1748830851670,8.0,2516.0,2515.9,3.97463396]
[1748830851834,2.77871055,2516.5,2516.0,3.97449353]
[1748830852036,2.77871055,2516.5,2516.1,3.97439165]
[1748830852236,4.099,2516.4,2515.9,0.8083]
[1748830852440,4.099,2516.4,2515.5,5.62631433]
[1748830852441,8.0,2516.2,2515.6,0.8083]
[1748830852649,4.099,2516.1,2515.8,3.9748768]
[1748830852879,7.35285631,2516.3,2515.9,3.97461182]
[1748830852880,0.6,2516.3,2515.9,3.97461182]
[1748830853142,4.099,2516.2,2515.9,3.97461182]
[1748830854372,11.37871055,2516.3,2515.9,3.97461182]
[1748830854584,12.098,2516.1,2516.0,3.97456279]
[1748830855288,8.0,2516.1,2516.0,3.97456279]
[1748830855580,12.098,2516.1,2516.0,3.97456279]
[1748830856951,12.098,2516.1,2515.6,1.45176143]
[1748830857179,12.098,2516.1,2515.6,0.8083]
[1748830857578,12.098,2516.1,2516.0,3.97456279]
[1748830861693,12.098,2516.1,2515.9,3.97463034]
[1748830861994,14.87671055,2516.1,2515.8,3.97485923]
[1748830863599,14.87671055,2516.1,2515.9,3.97467427]
[1748830864296,12.098,2516.1,2516.0,3.97456279]
[1748830865307,12.098,2516.1,2515.9,3.97463741]
[1748830867626,14.87671055,2516.1,2515.8,3.97476431]
[1748830867978,12.098,2516.1,2515.9,3.97471744]
[1748830868207,12.098,2516.1,2515.9,3.97470357]
[1748830868719,12.098,2516.1,2515.7,3.97502877]
[1748830869012,12.098,2516.1,2515.8,3.97473454]
[1748830869180,8.0,2516.1,2515.8,3.97473454]
[1748830869375,8.0,2516.1,2515.6,0.8083]
[1748830869376,8.55,2516.4,2516.1,3.97425815]
[1748830869580,8.0,2516.2,2516.1,3.9743596]
[1748830870478,12.097,2516.2,2516.1,3.9743596]
[1748830871148,12.097,2516.2,2516.0,3.97444919]
[1748830871336,2.77871055,2516.1,2516.0,3.97444919]
[1748830871643,2.77871055,2516.1,2516.0,3.97456279]
[1748830872313,2.77871055,2516.1,2515.9,3.97469036]
[1748830872498,4.097,2516.0,2515.9,3.97469036]
[1748830875764,4.097,2516.0,2515.8,3.97485426]
[1748830876325,4.097,2516.0,2515.9,3.97472077]
[1748830877163,4.097,2516.0,2515.8,3.97479514]
[1748830877461,4.097,2516.0,2515.4,3.97548971]
[1748830877462,8.0,2515.8,2515.5,3.97523778]
[1748830877670,6.87471055,2515.7,2515.5,3.97523778]
[1748830878264,14.87471055,2515.7,2515.6,3.97519478]
[1748830880546,14.87471055,2515.7,2515.5,3.97527721]
[1748830880753,14.87471055,2515.7,2515.6,3.97519478]
[1748830881567,8.0,2515.7,2515.6,3.97519478]
[1748830881730,4.14091055,2516.3,2515.7,0.8029]
[1748830881934,10.77871055,2516.1,2515.8,3.97480273]
[1748830882237,4.096,2516.0,2515.8,3.97480273]
[1748830882427,12.096,2516.0,2515.9,3.97472077]
[1748830882627,4.096,2516.0,2515.9,3.97472077]
[1748830882830,12.096,2516.0,2515.9,3.97472077]
[1748830884028,3.37871055,2516.1,2516.0,3.97456279]
[1748830884029,0.6,2516.1,2516.0,3.97456279]
[1748830884229,12.696,2516.1,2516.0,3.97456279]
[1748830884466,0.47028698,2516.8,2516.6,3.97348322]
[1748830884648,4.47244185,2516.7,2516.5,3.97363048]
[1748830884877,8.0,2516.6,2516.5,3.97363048]
[1748830885229,12.096,2516.6,2516.5,3.97363048]
[1748830886267,3.60721055,2516.9,2516.5,3.97363048]
[1748830886439,4.096,2516.8,2516.6,3.97355772]
[1748830886640,12.096,2516.8,2516.6,3.97355772]
[1748830886879,2.77871055,2516.7,2516.4,3.97380185]
[1748830887178,4.096,2516.6,2516.2,3.97414364]
[1748830887379,2.77871055,2516.3,2516.2,3.97424117]
[1748830887678,6.87471055,2516.3,2515.9,4.7729775]
[1748830887887,6.87471055,2516.3,2515.9,4.77297917]
[1748830888077,6.87471055,2516.3,2516.0,3.97454434]
[1748830888272,6.87471055,2516.3,2516.1,3.97438211]
[1748830889069,6.87471055,2516.3,2516.0,3.97448384]
[1748830889467,6.87471055,2516.3,2516.1,3.97438296]
[1748830889666,6.87471055,2516.3,2516.0,3.97456279]
[1748830889998,6.87471055,2516.3,2516.1,3.97430393]
[1748830890158,6.87471055,2516.3,2516.0,3.97447762]
[1748830890675,4.096,2516.3,2516.1,3.97426677]
[1748830890873,12.096,2516.3,2516.1,3.97426677]
[1748830891694,12.096,2516.3,2516.2,3.97424688]
[1748830891991,12.095,2516.3,2516.2,3.97424688]
[1748830892422,12.095,2516.3,2515.9,0.7983]
[1748830892599,12.095,2516.3,2516.1,3.97440074]
[1748830894001,8.0,2516.3,2516.1,3.97434138]
[1748830894200,8.0,2516.3,2515.9,4.77296678]
[1748830894201,6.87371055,2516.2,2515.9,4.77296678]
[1748830894400,6.87371055,2516.2,2515.9,3.97466678]
[1748830895002,4.095,2516.2,2516.1,3.97440483]
[1748830895503,8.0,2516.3,2516.2,3.97424688]
[1748830895713,12.095,2516.3,2516.2,3.97424688]
[1748830895914,12.095,2516.3,2516.1,3.97436303]
[1748830898306,12.095,2516.3,2516.2,3.97424688]
[1748830899273,8.0,2516.3,2516.2,3.97424688]
[1748830899474,12.095,2516.3,2516.1,0.8232]
[1748830899713,12.095,2516.3,2516.1,4.79754542]
[1748830900096,12.095,2516.3,2516.1,3.97434542]
[1748830902192,12.095,2516.3,2515.9,0.8232]
[1748830902421,2.77871055,2516.2,2515.9,3.97463054]
[1748830902595,4.095,2516.1,2515.9,3.97463054]
[1748830903391,2.77871055,2516.0,2515.6,3.97510231]
[1748830903594,5.58237106,2516.1,2515.4,0.8302]
[1748830903595,2.77871055,2515.8,2515.4,0.8302]
[1748830903806,4.094,2515.7,2515.6,3.97519478]
[1748830904698,4.095,2515.7,2515.6,3.97519478]
[1748830905129,4.095,2515.7,2515.6,4.85326196]
[1748830912339,8.0,2516.2,2515.9,3.97456848]
[1748830912542,4.094,2516.1,2515.9,3.97456848]
[1748830913241,12.094,2516.0,2515.9,3.97456848]
[1748830913555,8.0,2515.9,2515.8,3.97481328]
[1748830913852,4.094,2516.0,2515.8,3.97481328]
[1748830914018,4.094,2516.0,2515.3,0.7784]
[1748830914019,10.77871055,2515.9,2515.3,0.7784]
[1748830914222,10.77871055,2515.9,2515.4,3.97540289]
[1748830914223,2.77871055,2515.7,2515.4,3.97540289]
[1748830914552,4.094,2515.6,2515.3,0.7784]
[1748830914714,4.094,2515.6,2515.4,3.97540581]
[1748830915517,4.094,2515.6,2515.3,0.7784]
[1748830916020,4.094,2515.6,2515.5,3.97535281]
[1748830917420,0.8141,2515.9,2515.6,3.97504794]
[1748830917755,4.094,2515.8,2515.5,3.97528691]
[1748830918049,6.87271055,2515.8,2515.6,3.97518427]
[1748830920625,6.87271055,2515.8,2515.7,3.97503676]
[1748830921452,6.87271055,2515.8,2515.6,3.97511061]
[1748830922362,6.87271055,2515.8,2515.7,3.97503676]
[1748830922659,2.77871055,2515.8,2515.3,0.8196]
[1748830922860,8.0,2515.7,2515.5,3.97521912]
[1748830923018,8.0,2515.7,2515.5,3.97529539]
[1748830924361,8.0,2515.7,2515.4,3.97549492]
[1748830924534,4.094,2515.6,2515.3,0.8196]
[1748830924968,4.094,2515.6,2515.4,3.9755087]
[1748830925659,4.094,2515.6,2515.3,4.79526368]
[1748830925660,4.094,2515.6,2515.3,4.79523794]
[1748830925961,6.87271055,2515.6,2515.1,4.79844006]
[1748830926169,6.87271055,2515.6,2515.3,3.97564904]
[1748830926573,4.094,2515.6,2515.3,3.97564904]
[1748830928773,6.87271055,2515.6,2515.3,3.97564904]
[1748830929565,6.87271055,2515.6,2515.4,3.97550715]
[1748830931843,6.87271055,2515.6,2515.3,3.97561378]
[1748830932073,6.87271055,2515.6,2515.4,3.97549105]
[1748830935982,10.77871055,2515.6,2515.5,3.97535281]
[1748830936277,4.093,2515.7,2515.6,3.97519478]
[1748830936585,2.77871055,2516.1,2515.9,3.97465295]
[1748830936744,12.093,2516.0,2515.9,3.97465295]
[1748830937375,14.87171055,2516.0,2515.9,3.97465295]
[1748830938650,14.87171055,2516.0,2515.8,3.974865]
[1748830938851,14.87171055,2516.0,2515.7,3.97495926]
[1748830939054,2.77871055,2515.8,2515.6,3.97512063]
[1748830939372,4.093,2515.7,2515.6,3.97512063]
[1748830940948,10.77871055,2516.0,2515.9,3.97472077]
[1748830941279,14.87071055,2516.0,2515.9,3.97472077]
[1748830943998,10.77871055,2516.0,2515.9,3.97472077]
[1748830944199,14.87071055,2516.0,2515.9,3.97472077]
[1748830945203,8.0,2516.1,2516.0,3.9744734]
[1748830945413,12.092,2516.1,2516.0,3.9744734]
[1748830946061,8.0,2516.1,2516.0,3.9744734]
[1748830946261,12.092,2516.1,2516.0,3.9744734]
[1748830946700,12.092,2516.1,2515.8,4.75498497]
[1748830946899,12.092,2516.1,2515.8,0.7802]
[1748830947197,12.092,2516.1,2516.0,3.97456279]
[1748830948489,2.77871055,2516.2,2516.1,3.97440483]
[1748830948684,8.0,2516.3,2516.2,3.97415454]
[1748830948894,12.092,2516.3,2516.2,3.97415454]
[1748830950626,12.092,2516.3,2515.9,3.97461358]
[1748830950908,2.77871055,2516.1,2516.0,3.9745216]
[1748830951112,6.86971055,2516.1,2516.0,3.9745216]
[1748830953308,2.77871055,2516.1,2516.0,3.9745216]
[1748830953475,6.86971055,2516.1,2516.0,3.9745216]
[1748830953670,2.77871055,2516.1,2516.0,3.9745216]
[1748830953883,10.77871055,2516.3,2516.2,3.97424688]
[1748830954118,14.86971055,2516.3,2516.2,3.97424688]
[1748830955419,14.86971055,2516.3,2516.1,3.97433583]
[1748830957621,10.77871055,2516.3,2516.1,3.97433583]
[1748830957820,4.09,2516.2,2516.1,3.97433583]
[1748830963239,10.77871055,2516.3,2516.1,3.97433583]
[1748830963393,4.09,2516.2,2516.1,3.97433583]
[1748830964230,10.77871055,2516.3,2516.2,3.97424688]
[1748830964403,0.774,2516.6,2516.4,3.97393101]
[1748830964604,0.774,2516.6,2516.2,0.88215254]
[1748830964605,0.02,2516.9,2516.8,3.97329942]
[1748830964819,0.02,2516.9,2516.8,4.01303159]
[1748830965029,0.02,2516.9,2516.8,3.97329942]
[1748830965497,0.02,2516.9,2516.8,4.73389942]
[1748830965837,0.02,2516.9,2516.8,5.60463326]
[1748830971839,2.79871055,2516.9,2516.8,4.84403326]
[1748830972013,2.79871055,2516.9,2516.8,3.97329942]
[1748830972211,2.79871055,2516.9,2516.7,3.9733419]
[1748830972526,2.79871055,2516.9,2516.8,3.97329942]
[1748830972839,2.79871055,2516.9,2516.6,4.73918823]
[1748830973038,2.79871055,2516.9,2516.8,3.97329942]
[1748830975116,3.60431055,2516.9,2516.2,4.85630299]
[1748830975316,2.77871055,2516.6,2516.5,3.97377309]
[1748830975517,6.86671055,2516.6,2516.5,3.97377309]
[1748830979859,6.86571055,2516.6,2516.5,3.97377309]
[1748830980563,6.86571055,2516.6,2516.4,3.97384944]
[1748830980860,6.86571055,2516.6,2516.5,3.97377309]
[1748830981066,6.86571055,2516.6,2516.4,3.973922]
[1748830981355,6.86571055,2516.6,2516.3,3.97403579]
[1748830982063,6.86571055,2516.6,2516.3,3.97399652]
[1748830982769,2.77871055,2516.4,2516.0,4.84737913]
[1748830982929,2.77871055,2516.1,2516.0,3.97449093]
[1748830983129,6.86571055,2516.1,2516.0,3.97449093]
[1748830983354,6.86571055,2516.1,2516.0,4.76940646]
[1748830983781,4.087,2516.1,2516.0,4.76940646]
[1748830985444,2.77871055,2516.4,2516.2,3.97424688]
[1748830985638,4.087,2516.3,2516.1,3.97431353]
[1748830985965,2.77871055,2516.2,2515.7,4.7943477]
[1748830986170,2.77871055,2515.8,2515.6,3.9751527]
[1748830986390,6.86571055,2515.8,2515.7,3.97503676]
[1748830986878,6.86571055,2515.8,2515.5,0.8098]
[1748830987344,6.86571055,2515.8,2515.7,3.97503676]
[1748830987676,4.087,2515.8,2515.7,3.97503676]
[1748830988172,8.0,2516.1,2515.7,0.87598868]
[1748830988381,8.0,2516.1,2516.0,3.97456279]
[1748830988682,12.087,2516.1,2516.0,3.97456279]
[1748830989946,12.087,2516.1,2515.9,3.97472077]
[1748830989947,4.087,2516.1,2515.9,3.97472077]
[1748830990263,4.087,2516.1,2516.0,3.97456279]
[1748830990464,4.087,2516.1,2516.0,4.84918115]
[1748830992253,8.0,2516.4,2516.2,3.97415686]
[1748830992442,4.087,2516.3,2516.2,3.97415686]
[1748830992783,4.087,2516.3,2516.1,3.97434802]
[1748830993082,6.86571055,2516.3,2516.1,3.97434802]
[1748830993670,6.86571055,2516.3,2516.2,3.97424688]
[1748830994186,8.0,2516.4,2516.3,3.97408894]
[1748830994350,0.8206,2516.7,2516.5,3.97367926]
[1748830994555,4.087,2516.6,2516.5,3.97367926]
[1748830994757,4.087,2516.6,2516.4,3.97385686]
[1748830995273,6.86571055,2516.6,2516.4,3.97385686]
[1748830995476,2.77871055,2516.6,2516.4,3.97385686]
[1748830995787,4.087,2516.5,2516.4,3.97385686]
[1748830996289,4.087,2516.5,2516.1,3.97431294]
[1748830996290,4.086,2516.5,2516.1,3.97431294]
[1748830996489,2.77871055,2516.3,2516.2,3.97424406]
[1748830996696,8.8206,2516.7,2516.3,3.97400785]
[1748830996697,2.77871055,2516.4,2516.3,3.97400785]
[1748830996987,6.86471055,2516.4,2516.3,3.97400785]
[1748830997515,6.86471055,2516.4,2516.2,3.97417296]
[1748830997654,6.86471055,2516.4,2516.3,3.97408894]
[1748830998293,4.086,2516.4,2516.3,3.97408894]
[1748830998658,4.086,2516.4,2516.1,0.7735]
[1748830998857,4.086,2516.4,2516.2,0.47480299]
[1748830999394,4.086,2516.4,2516.3,3.97408894]
[1748831003502,10.77871055,2516.6,2516.5,3.97377309]
[1748831003907,14.86471055,2516.6,2516.5,3.97377309]
[1748831005801,2.77871055,2516.8,2516.7,3.9734573]
[1748831005975,2.77871055,2516.8,2516.6,3.97358181]
[1748831005976,8.0,2516.7,2516.6,3.97358181]
[1748831006184,6.86471055,2516.8,2516.6,3.97358181]
[1748831006585,0.02,2516.9,2516.7,3.9734573]
[1748831006887,0.02,2516.9,2516.8,3.97329942]
[1748831009025,2.79871055,2516.9,2516.6,3.97356998]
[1748831009236,4.085,2516.8,2516.5,5.81811867]
[1748831009432,4.085,2516.8,2516.5,5.04471867]
[1748831009725,4.085,2516.8,2516.6,3.97361519]
[1748831010095,4.085,2516.8,2516.7,3.9734573]
[1748831011904,0.02,2516.9,2516.8,3.97329942]
[1748831012079,4.105,2516.9,2516.8,3.97329942]
[1748831012688,4.105,2516.9,2516.6,3.97356522]
[1748831013383,4.105,2516.9,2516.7,3.9734573]
[1748831013681,4.105,2516.9,2516.8,3.97329942]
[1748831014017,6.88371055,2516.9,2516.8,3.97329942]
[1748831015708,4.104,2516.9,2516.8,3.97329942]
[1748831016018,4.104,2516.9,2516.8,4.76797324]
[1748831016389,0.02,2516.9,2516.8,4.76797324]
[1748831019212,0.02,2516.9,2516.8,3.97329942]
[1748831026442,0.02,2516.9,2516.8,4.77719942]
[1748831027145,0.02,2516.9,2516.8,9.52719942]
[1748831027328,0.02,2516.9,2516.8,12.30590997]
[1748831030848,0.02,2516.9,2516.8,9.52719942]
[1748831031051,0.02,2516.9,2516.8,11.56343429]
[1748831032048,0.02,2516.9,2516.8,16.71443429]
[1748831034049,0.02,2516.9,2516.8,12.63243429]
[1748831039556,0.02,2516.9,2516.8,11.56343429]
[1748831040037,0.02,2516.9,2516.8,12.63243429]
[1748831040433,0.02,2516.9,2516.8,11.56343429]
[1748831040645,0.02,2516.9,2516.8,11.82853429]
[1748831040823,0.02,2516.9,2516.8,3.97329942]
[1748831041023,0.8001,2516.9,2516.8,3.97329942]
[1748831044926,0.02,2516.9,2516.8,3.97329942]
[1748831045539,0.02,2516.9,2516.8,4.77179942]
[1748831050367,0.02,2516.9,2516.8,3.97329942]
[1748831050527,0.02,2516.9,2516.8,4.8507036]
[1748831053032,0.02,2516.9,2516.8,5.6287036]
[1748831054734,0.02,2516.9,2516.8,8.44713979]
[1748831054935,0.02,2516.9,2516.8,5.6287036]
[1748831055550,0.02,2516.9,2516.8,6.6957036]
[1748831056773,0.02,2516.9,2516.8,11.4457036]
[1748831058773,0.02,2516.9,2516.8,10.3787036]
[1748831059072,0.02,2516.9,2516.8,11.4457036]
[1748831059862,0.02,2516.9,2516.8,6.6957036]
[1748831060878,0.02,2516.9,2516.8,5.9177036]
[1748831062878,0.8495,2516.9,2516.8,3.97329942]
[1748831064549,0.02,2516.9,2516.8,3.97329942]
[1748831065203,0.02,2516.9,2516.8,4.786529]
[1748831065382,0.02,2516.9,2516.8,4.74679942]
[1748831066283,0.02,2516.9,2516.8,7.52550997]
[1748831066446,0.02,2516.9,2516.8,9.2571052]
[1748831073778,0.02,2516.9,2516.8,14.4011052]
[1748831074512,0.02,2516.9,2516.8,19.1511052]
[1748831075013,0.02,2516.9,2516.8,16.37239465]
[1748831075308,0.02,2516.9,2516.8,12.29439465]
[1748831075907,0.02,2516.9,2516.8,10.45489465]
[1748831076107,0.02,2516.9,2516.8,11.52089465]
[1748831076876,0.02,2516.9,2516.8,6.77089465]
[1748831077114,0.02,2516.9,2516.8,5.03929942]
[1748831077627,0.02,2516.9,2516.8,3.97329942]
[1748831086490,0.02,2516.9,2516.5,5.816]
[1748831086491,0.777,2516.8,2516.5,5.816]
[1748831086720,2.77871055,2516.7,2516.1,4.75]
[1748831086919,0.777,2516.6,2516.4,3.97392902]
[1748831087283,0.777,2516.6,2516.2,3.97424688]
[1748831087487,0.777,2516.6,2516.4,3.97390988]
[1748831087724,0.777,2516.6,2516.3,3.97401413]
[1748831088227,0.777,2516.6,2516.4,3.97392187]
[1748831088589,0.777,2516.6,2516.3,3.97401507]
[1748831089216,0.777,2516.6,2516.4,3.97392129]
[1748831089623,0.777,2516.6,2516.3,3.97403721]
[1748831090430,0.777,2516.6,2516.3,3.97402066]
[1748831091631,0.777,2516.6,2516.2,3.97418913]
[1748831091925,0.777,2516.6,2516.3,3.97406347]
[1748831094425,0.777,2516.6,2516.3,3.97396538]
[1748831094624,0.777,2516.6,2516.4,3.9739122]
[1748831095521,0.777,2516.6,2516.5,3.97377309]
[1748831096998,8.0,2516.7,2516.6,3.97361519]
[1748831097193,4.077,2516.7,2516.6,3.97351548]
[1748831097399,12.07488507,2516.7,2516.6,3.97351548]
[1748831097599,12.06642457,2516.7,2516.6,3.97351548]
[1748831098128,8.0,2516.7,2516.6,3.97351548]
[1748831098330,12.077,2516.7,2516.6,3.97351548]
[1748831099443,8.0,2516.7,2516.6,3.97351548]
[1748831099615,8.0,2516.7,2516.6,4.76824434]
[1748831100061,0.02,2516.9,2516.8,3.97329942]
[1748831101388,8.02,2516.9,2516.2,5.5728]
[1748831101668,8.02,2516.9,2516.5,3.97369297]
[1748831101669,2.77871055,2516.7,2516.5,3.97369297]
[1748831101977,4.077,2516.6,2516.5,3.97369297]
[1748831104868,0.7519,2516.8,2516.7,3.9734573]
[1748831105079,0.02,2516.9,2516.8,3.97329942]